fUST/lending_fUST_20260525
["ID","MTS","AMOUNT","RATE_DAILY","PERIOD"]
[422975099,1779697623000,-500.0,8.767e-05,2]
[422975114,1779697623000,-500.0,8.767e-05,2]
[422975105,1779697623000,-500.0,8.767e-05,2]
[422975115,1779697623000,-500.0,8.767e-05,2]
[422975117,1779697623000,-1259.22,8.767e-05,2]
[422975131,1779697623000,-500.0,8.767e-05,2]
[422975134,1779697623000,-500.0,8.767e-05,2]
[422975116,1779697623000,-500.0,8.767e-05,2]
[422975133,1779697623000,-500.0,8.767e-05,2]
[422975132,1779697623000,-500.0,8.767e-05,2]
[422975130,1779697623000,-500.0,8.767e-05,2]
[422975128,1779697623000,-500.0,8.767e-05,2]
[422975127,1779697623000,-500.0,8.767e-05,2]
[422975125,1779697623000,-500.0,8.767e-05,2]
[422975129,1779697623000,-500.0,8.767e-05,2]
[422975123,1779697623000,-167.59022704,8.767e-05,2]
[422975124,1779697623000,-206.12483776,8.767e-05,2]
[422975122,1779697623000,-500.0,8.767e-05,2]
[422975121,1779697623000,-500.0,8.767e-05,2]
[422975120,1779697623000,-500.0,8.767e-05,2]
[422975118,1779697623000,-866.08,8.767e-05,2]
[422975119,1779697623000,-500.0,8.767e-05,2]
[422975126,1779697623000,-500.0,8.767e-05,2]
[422975144,1779697624000,-834.81,8.767e-05,2]
[422975148,1779697624000,-500.0,8.767e-05,2]
[422975146,1779697624000,-500.0,8.767e-05,2]
[422975147,1779697624000,-743.05,8.767e-05,2]
[422975145,1779697624000,-500.0,8.767e-05,2]
[422975143,1779697624000,-500.0,8.767e-05,2]
[422975141,1779697624000,-500.0,8.767e-05,2]
[422975149,1779697624000,-873.33,8.767e-05,2]
[422975140,1779697624000,-920.97,8.767e-05,2]
[422975139,1779697624000,-500.0,8.767e-05,2]
[422975138,1779697624000,-500.0,8.767e-05,2]
[422975137,1779697624000,-500.0,8.767e-05,2]
[422975136,1779697624000,-500.0,8.767e-05,2]
[422975135,1779697624000,-500.0,8.767e-05,2]
[422975142,1779697624000,-500.0,8.767e-05,2]
[422975151,1779697624000,-500.0,8.767e-05,2]
[422975150,1779697624000,-500.0,8.767e-05,2]
[422975152,1779697624000,-1171.11,8.767e-05,2]
[422975166,1779697624000,-925.58,8.767e-05,2]
[422975164,1779697624000,-500.0,8.767e-05,2]
[422975165,1779697624000,-500.0,8.767e-05,2]
[422975163,1779697624000,-1118.85,8.767e-05,2]
[422975161,1779697624000,-500.0,8.767e-05,2]
[422975162,1779697624000,-500.0,8.767e-05,2]
[422975159,1779697624000,-500.0,8.767e-05,2]
[422975167,1779697624000,-515.81,8.767e-05,2]
[422975158,1779697624000,-500.0,8.767e-05,2]
[422975157,1779697624000,-643.38497232,8.767e-05,2]
[422975155,1779697624000,-621.6857578,8.767e-05,2]
[422975156,1779697624000,-2377.71,8.767e-05,2]
[422975154,1779697624000,-500.0,8.767e-05,2]
[422975153,1779697624000,-500.0,8.767e-05,2]
[422975160,1779697624000,-500.0,8.767e-05,2]
[422975180,1779697625000,-500.0,8.767e-05,2]
[422975181,1779697625000,-500.0,8.767e-05,2]
[422975178,1779697625000,-546.49,8.767e-05,2]
[422975179,1779697625000,-500.0,8.767e-05,2]
[422975177,1779697625000,-500.0,8.767e-05,2]
[422975175,1779697625000,-615.17,8.767e-05,2]
[422975176,1779697625000,-609.5,8.767e-05,2]
[422975174,1779697625000,-500.0,8.767e-05,2]
[422975173,1779697625000,-500.0,8.767e-05,2]
[422975171,1779697625000,-500.0,8.767e-05,2]
[422975170,1779697625000,-500.0,8.767e-05,2]
[422975168,1779697625000,-500.0,8.767e-05,2]
[422975169,1779697625000,-500.0,8.767e-05,2]
[422975183,1779697625000,-1107.38,8.767e-05,2]
[422975172,1779697625000,-953.47,8.767e-05,2]
[422975182,1779697625000,-1132.43,8.767e-05,2]
[422975184,1779697625000,-679.4127,8.767e-05,2]
[422975201,1779697625000,-500.0,8.767e-05,2]
[422975202,1779697625000,-500.0,8.767e-05,2]
[422975186,1779697625000,-3482.47,8.767e-05,2]
[422975199,1779697625000,-956.79,8.767e-05,2]
[422975200,1779697625000,-500.0,8.767e-05,2]
[422975197,1779697625000,-500.0,8.767e-05,2]
[422975198,1779697625000,-622.33,8.767e-05,2]
[422975195,1779697625000,-500.0,8.767e-05,2]
[422975193,1779697625000,-500.0,8.767e-05,2]
[422975196,1779697625000,-500.0,8.767e-05,2]
[422975192,1779697625000,-500.0,8.767e-05,2]
[422975191,1779697625000,-500.0,8.767e-05,2]
[422975190,1779697625000,-500.0,8.767e-05,2]
[422975189,1779697625000,-500.0,8.767e-05,2]
[422975188,1779697625000,-500.0,8.767e-05,2]
[422975187,1779697625000,-500.0,8.767e-05,2]
[422975185,1779697625000,-500.0,8.767e-05,2]
[422975194,1779697625000,-4890.67,8.767e-05,2]
[422975211,1779697626000,-1316.95,8.767e-05,2]
[422975215,1779697626000,-1639.87,8.767e-05,2]
[422975216,1779697626000,-500.0,8.767e-05,2]
[422975214,1779697626000,-947.01,8.767e-05,2]
[422975213,1779697626000,-500.0,8.767e-05,2]
[422975212,1779697626000,-1456.88,8.767e-05,2]
[422975210,1779697626000,-2378.06,8.767e-05,2]
[422975217,1779697626000,-1402.51,8.767e-05,2]
[422975207,1779697626000,-500.0,8.767e-05,2]
[422975208,1779697626000,-500.0,8.767e-05,2]
[422975206,1779697626000,-620.28,8.767e-05,2]
[422975205,1779697626000,-500.0,8.767e-05,2]
[422975204,1779697626000,-500.0,8.767e-05,2]
[422975203,1779697626000,-852.38,8.767e-05,2]
[422975209,1779697626000,-2277.86,8.767e-05,2]
[422975218,1779697626000,-500.0,8.767e-05,2]
[422975224,1779697626000,-500.0,8.767e-05,2]
[422975221,1779697626000,-2907.21,8.767e-05,2]
[422975219,1779697626000,-500.0,8.767e-05,2]
[422975235,1779697626000,-500.0,8.767e-05,2]
[422975233,1779697626000,-500.0,8.767e-05,2]
[422975234,1779697626000,-1257.68,8.767e-05,2]
[422975230,1779697626000,-2113.03,8.767e-05,2]
[422975231,1779697626000,-500.0,8.767e-05,2]
[422975229,1779697626000,-500.0,8.767e-05,2]
[422975232,1779697626000,-827.77,8.767e-05,2]
[422975226,1779697626000,-500.75,8.767e-05,2]
[422975227,1779697626000,-500.0,8.767e-05,2]
[422975225,1779697626000,-5059.07,8.767e-05,2]
[422975223,1779697626000,-1319.98,8.767e-05,2]
[422975236,1779697626000,-20518.6,8.767e-05,2]
[422975222,1779697626000,-554.67,8.767e-05,2]
[422975220,1779697626000,-4118.85,8.767e-05,2]
[422975228,1779697626000,-565.51,8.767e-05,2]
[422975245,1779697627000,-1651.72,8.767e-05,2]
[422975251,1779697627000,-579.34,8.767e-05,2]
[422975250,1779697627000,-500.0,8.767e-05,2]
[422975249,1779697627000,-500.0,8.767e-05,2]
[422975247,1779697627000,-500.0,8.767e-05,2]
[422975248,1779697627000,-500.0,8.767e-05,2]
[422975246,1779697627000,-500.0,8.767e-05,2]
[422975237,1779697627000,-2950.04,8.767e-05,2]
[422975243,1779697627000,-763.01,8.767e-05,2]
[422975242,1779697627000,-6105.74,8.767e-05,2]
[422975241,1779697627000,-500.0,8.767e-05,2]
[422975240,1779697627000,-677.31,8.767e-05,2]
[422975238,1779697627000,-500.0,8.767e-05,2]
[422975239,1779697627000,-500.0,8.767e-05,2]
[422975252,1779697627000,-1027.85,8.767e-05,2]
[422975244,1779697627000,-1240.2,8.767e-05,2]
[422975254,1779697627000,-500.0,8.767e-05,2]
[422975259,1779697627000,-420.0,9.04e-05,2]
[422975255,1779697627000,-500.0,8.767e-05,2]
[422975271,1779697627000,-500.0,9.041e-05,2]
[422975269,1779697627000,-500.0,9.041e-05,2]
[422975270,1779697627000,-500.0,9.041e-05,2]
[422975268,1779697627000,-500.0,9.041e-05,2]
[422975253,1779697627000,-500.0,8.767e-05,2]
[422975265,1779697627000,-500.0,9.041e-05,2]
[422975266,1779697627000,-801.0163,9.041e-05,2]
[422975267,1779697627000,-500.0,9.041e-05,2]
[422975264,1779697627000,-500.0,9.041e-05,2]
[422975263,1779697627000,-500.0,9.041e-05,2]
[422975261,1779697627000,-500.0,9.041e-05,2]
[422975260,1779697627000,-500.0,9.041e-05,2]
[422975258,1779697627000,-355.91644889,8.904e-05,2]
[422975257,1779697627000,-500.0,8.767e-05,2]
[422975256,1779697627000,-1909.0,8.767e-05,2]
[422975262,1779697627000,-500.0,9.041e-05,2]
[422975281,1779697628000,-500.0,9.041e-05,2]
[422975286,1779697628000,-500.0,9.041e-05,2]
[422975285,1779697628000,-500.0,9.041e-05,2]
[422975283,1779697628000,-500.0,9.041e-05,2]
[422975284,1779697628000,-728.04,9.041e-05,2]
[422975282,1779697628000,-500.0,9.041e-05,2]
[422975280,1779697628000,-500.0,9.041e-05,2]
[422975288,1779697628000,-500.0,9.041e-05,2]
[422975278,1779697628000,-447.33456967,9.041e-05,2]
[422975276,1779697628000,-315.17416686,9.041e-05,2]
[422975277,1779697628000,-500.0,9.041e-05,2]
[422975274,1779697628000,-500.0,9.041e-05,2]
[422975275,1779697628000,-500.0,9.041e-05,2]
[422975273,1779697628000,-500.0,9.041e-05,2]
[422975272,1779697628000,-603.74,9.041e-05,2]
[422975279,1779697628000,-500.0,9.041e-05,2]
[422975287,1779697628000,-703.8,9.041e-05,2]
[422975290,1779697628000,-500.0,9.041e-05,2]
[422975291,1779697628000,-500.0,9.041e-05,2]
[422975306,1779697628000,-500.0,9.041e-05,2]
[422975304,1779697628000,-500.0,9.041e-05,2]
[422975305,1779697628000,-500.0,9.041e-05,2]
[422975303,1779697628000,-500.0,9.041e-05,2]
[422975302,1779697628000,-500.0,9.041e-05,2]
[422975301,1779697628000,-500.0,9.041e-05,2]
[422975300,1779697628000,-500.0,9.041e-05,2]
[422975289,1779697628000,-500.0,9.041e-05,2]
[422975298,1779697628000,-866.08,9.041e-05,2]
[422975297,1779697628000,-1259.22,9.041e-05,2]
[422975296,1779697628000,-500.0,9.041e-05,2]
[422975294,1779697628000,-500.0,9.041e-05,2]
[422975295,1779697628000,-500.0,9.041e-05,2]
[422975292,1779697628000,-500.0,9.041e-05,2]
[422975293,1779697628000,-500.0,9.041e-05,2]
[422975299,1779697628000,-500.0,9.041e-05,2]
[422975320,1779697629000,-500.0,9.041e-05,2]
[422975321,1779697629000,-500.0,9.041e-05,2]
[422975318,1779697629000,-920.97,9.041e-05,2]
[422975319,1779697629000,-500.0,9.041e-05,2]
[422975315,1779697629000,-500.0,9.041e-05,2]
[422975316,1779697629000,-500.0,9.041e-05,2]
[422975317,1779697629000,-500.0,9.041e-05,2]
[422975311,1779697629000,-500.0,9.041e-05,2]
[422975312,1779697629000,-500.0,9.041e-05,2]
[422975313,1779697629000,-500.0,9.041e-05,2]
[422975310,1779697629000,-500.0,9.041e-05,2]
[422975309,1779697629000,-442.12195228,9.041e-05,2]
[422975307,1779697629000,-500.0,9.041e-05,2]
[422975308,1779697629000,-500.0,9.041e-05,2]
[422975322,1779697629000,-834.81,9.041e-05,2]
[422975314,1779697629000,-500.0,9.041e-05,2]
[422975323,1779697629000,-500.0,9.041e-05,2]
[422975324,1779697629000,-500.0,9.041e-05,2]
[422975326,1779697629000,-500.0,9.041e-05,2]
[422975342,1779697629000,-925.58,9.041e-05,2]
[422975341,1779697629000,-500.0,9.041e-05,2]
[422975340,1779697629000,-500.0,9.041e-05,2]
[422975339,1779697629000,-1118.85,9.041e-05,2]
[422975338,1779697629000,-500.0,9.041e-05,2]
[422975337,1779697629000,-500.0,9.041e-05,2]
[422975335,1779697629000,-500.0,9.041e-05,2]
[422975333,1779697629000,-2377.71,9.041e-05,2]
[422975336,1779697629000,-500.0,9.041e-05,2]
[422975329,1779697629000,-500.0,9.041e-05,2]
[422975331,1779697629000,-500.0,9.041e-05,2]
[422975332,1779697629000,-500.0,9.041e-05,2]
[422975330,1779697629000,-1171.11,9.041e-05,2]
[422975328,1779697629000,-500.0,9.041e-05,2]
[422975327,1779697629000,-873.33,9.041e-05,2]
[422975325,1779697629000,-743.05,9.041e-05,2]
[422975334,1779697629000,-500.0,9.041e-05,2]
[422975351,1779697630000,-615.17,9.041e-05,2]
[422975357,1779697630000,-500.0,9.041e-05,2]
[422975356,1779697630000,-500.0,9.041e-05,2]
[422975355,1779697630000,-500.0,9.041e-05,2]
[422975354,1779697630000,-546.49,9.041e-05,2]
[422975353,1779697630000,-500.0,9.041e-05,2]
[422975352,1779697630000,-609.5,9.041e-05,2]
[422975344,1779697630000,-500.0,9.041e-05,2]
[422975350,1779697630000,-500.0,9.041e-05,2]
[422975348,1779697630000,-953.47,9.041e-05,2]
[422975347,1779697630000,-500.0,9.041e-05,2]
[422975345,1779697630000,-500.0,9.041e-05,2]
[422975346,1779697630000,-500.0,9.041e-05,2]
[422975343,1779697630000,-515.81,9.041e-05,2]
[422975360,1779697630000,-679.4127,9.041e-05,2]
[422975349,1779697630000,-500.0,9.041e-05,2]
[422975358,1779697630000,-1132.43,9.041e-05,2]
[422975363,1779697630000,-500.0,9.041e-05,2]
[422975362,1779697630000,-3482.47,9.041e-05,2]
[422975359,1779697630000,-1107.38,9.041e-05,2]
[422975377,1779697630000,-500.0,9.041e-05,2]
[422975376,1779697630000,-500.0,9.041e-05,2]
[422975375,1779697630000,-956.79,9.041e-05,2]
[422975374,1779697630000,-622.33,9.041e-05,2]
[422975372,1779697630000,-500.0,9.041e-05,2]
[422975373,1779697630000,-500.0,9.041e-05,2]
[422975371,1779697630000,-500.0,9.041e-05,2]
[422975378,1779697630000,-392.79830891,9.041e-05,2]
[422975370,1779697630000,-4890.67,9.041e-05,2]
[422975367,1779697630000,-500.0,9.041e-05,2]
[422975365,1779697630000,-500.0,9.041e-05,2]
[422975368,1779697630000,-500.0,9.041e-05,2]
[422975366,1779697630000,-500.0,9.041e-05,2]
[422975361,1779697630000,-500.0,9.041e-05,2]
[422975364,1779697630000,-500.0,9.041e-05,2]
[422975369,1779697630000,-500.0,9.041e-05,2]
[422975392,1779697631000,-500.0,9.041e-05,2]
[422975391,1779697631000,-1639.87,9.041e-05,2]
[422975389,1779697631000,-500.0,9.041e-05,2]
[422975390,1779697631000,-947.01,9.041e-05,2]
[422975388,1779697631000,-1456.88,9.041e-05,2]
[422975387,1779697631000,-1316.95,9.041e-05,2]
[422975383,1779697631000,-500.0,9.041e-05,2]
[422975385,1779697631000,-2277.86,9.041e-05,2]
[422975384,1779697631000,-500.0,9.041e-05,2]
[422975382,1779697631000,-620.28,9.041e-05,2]
[422975380,1779697631000,-500.0,9.041e-05,2]
[422975381,1779697631000,-500.0,9.041e-05,2]
[422975379,1779697631000,-852.38,9.041e-05,2]
[422975393,1779697631000,-1402.51,9.041e-05,2]
[422975386,1779697631000,-2378.06,9.041e-05,2]
[422975394,1779697631000,-500.0,9.041e-05,2]
[422975397,1779697631000,-2907.21,9.041e-05,2]
[422975396,1779697631000,-4118.85,9.041e-05,2]
[422975410,1779697631000,-1257.68,9.041e-05,2]
[422975412,1779697631000,-20518.6,9.041e-05,2]
[422975395,1779697631000,-500.0,9.041e-05,2]
[422975407,1779697631000,-500.0,9.041e-05,2]
[422975408,1779697631000,-827.77,9.041e-05,2]
[422975409,1779697631000,-500.0,9.041e-05,2]
[422975406,1779697631000,-2113.03,9.041e-05,2]
[422975411,1779697631000,-500.0,9.041e-05,2]
[422975404,1779697631000,-565.51,9.041e-05,2]
[422975405,1779697631000,-500.0,9.041e-05,2]
[422975400,1779697631000,-500.0,9.041e-05,2]
[422975401,1779697631000,-5059.07,9.041e-05,2]
[422975402,1779697631000,-500.75,9.041e-05,2]
[422975399,1779697631000,-1319.98,9.041e-05,2]
[422975398,1779697631000,-554.67,9.041e-05,2]
[422975403,1779697631000,-483.51950312,9.041e-05,2]
[422975424,1779697632000,-500.0,9.041e-05,2]
[422975421,1779697632000,-1651.72,9.041e-05,2]
[422975420,1779697632000,-1240.2,9.041e-05,2]
[422975418,1779697632000,-763.01,9.041e-05,2]
[422975415,1779697632000,-500.0,9.041e-05,2]
[422975416,1779697632000,-677.31,9.041e-05,2]
[422975417,1779697632000,-500.0,9.041e-05,2]
[422975414,1779697632000,-500.0,9.041e-05,2]
[422975413,1779697632000,-2950.04,9.041e-05,2]
[422975419,1779697632000,-6105.74,9.041e-05,2]
[422975423,1779697632000,-500.0,9.041e-05,2]
[422975422,1779697632000,-500.0,9.041e-05,2]
[422975427,1779697632000,-579.34,9.041e-05,2]
[422975437,1779697632000,-355.91644889,9.11e-05,2]
[422975436,1779697632000,1466.5535,8.219e-05,2]
[422975435,1779697632000,615.72,9.041e-05,2]
[422975434,1779697632000,615.72,8.767e-05,2]
[422975431,1779697632000,-500.0,9.041e-05,2]
[422975425,1779697632000,-500.0,9.041e-05,2]
[422975433,1779697632000,-500.0,9.041e-05,2]
[422975428,1779697632000,-1027.85,9.041e-05,2]
[422975430,1779697632000,-500.0,9.041e-05,2]
[422975429,1779697632000,-500.0,9.041e-05,2]
[422975426,1779697632000,-500.0,9.041e-05,2]
[422975432,1779697632000,-1909.0,9.041e-05,2]
[422975438,1779697633000,-54.09314693,9.3e-05,2]
[422975439,1779697633000,4357.7,8.219e-05,2]
[422975441,1779697633000,500.0,8.219e-05,2]
[422975440,1779697633000,4357.7,8.493e-05,2]
[422975442,1779697633000,4357.7,8.767e-05,2]
[422975444,1779697633000,500.0,8.493e-05,2]
[422975443,1779697633000,1510.48,8.219e-05,2]
[422975445,1779697633000,4357.7,9.041e-05,2]
[422975450,1779697633000,1510.48,9.041e-05,2]
[422975446,1779697633000,1510.48,8.493e-05,2]
[422975448,1779697633000,1510.48,8.767e-05,2]
[422975449,1779697633000,500.0,9.041e-05,2]
[422975451,1779697633000,5000.0,9.1e-05,2]
[422975452,1779697633000,500.0,8.219e-05,2]
[422975454,1779697633000,500.0,8.767e-05,2]
[422975453,1779697633000,500.0,8.493e-05,2]
[422975455,1779697633000,500.0,9.041e-05,2]
[422975447,1779697633000,500.0,8.767e-05,2]
[422975457,1779697634000,5000.0,9.1e-05,2]
[422975456,1779697634000,457.76414885,8.219e-05,2]
[422975459,1779697634000,500.0,8.219e-05,2]
[422975458,1779697634000,500.0,8.219e-05,2]
[422975462,1779697635000,500.0,8.767e-05,2]
[422975465,1779697635000,500.0,9.041e-05,2]
[422975464,1779697635000,500.0,9.041e-05,2]
[422975463,1779697635000,500.0,8.767e-05,2]
[422975461,1779697635000,500.0,8.493e-05,2]
[422975460,1779697635000,500.0,8.493e-05,2]
[422975466,1779697653000,-500.75612095,8.219e-05,2]
[422975467,1779697653000,-451.32160025,8.219e-05,2]
[422975468,1779697653000,-48.67839975,8.219e-05,2]
[422975469,1779697653000,-397.35379083,8.219e-05,2]
[422975470,1779697706000,-167.0,8.218e-05,2]
[422975471,1779697759000,-567.12620917,8.219e-05,2]
[422975472,1779697813000,-500.0,8.219e-05,2]
[422975534,1779697833000,-500.0,8.219e-05,2]
[422975538,1779697833000,-1680.0,8.219e-05,2]
[422975536,1779697833000,-500.0,8.219e-05,2]
[422975559,1779697833000,-1731.17,8.219e-05,2]
[422975561,1779697833000,-500.0,8.219e-05,2]
[422975555,1779697833000,-500.0,8.219e-05,2]
[422975557,1779697833000,-853.49,8.219e-05,2]
[422975553,1779697833000,-1284.55,8.219e-05,2]
[422975563,1779697833000,-1295.90069138,8.219e-05,2]
[422975636,1779697838000,-2883.81930862,8.219e-05,2]
[422975638,1779697838000,-500.0,8.219e-05,2]
[422975637,1779697838000,-500.0,8.219e-05,2]
[422975639,1779697838000,-500.0,8.219e-05,2]
[422975641,1779697838000,-901.22,8.219e-05,2]
[422975644,1779697838000,-751.98,8.219e-05,2]
[422975640,1779697838000,-500.0,8.219e-05,2]
[422975642,1779697838000,-500.0,8.219e-05,2]
[422975643,1779697838000,-500.0,8.219e-05,2]
[422975645,1779697838000,-1364.15,8.219e-05,2]
[422975646,1779697838000,-848.43,8.219e-05,2]
[422975647,1779697838000,-1276.56,8.219e-05,2]
[422975649,1779697838000,-1939.88,8.219e-05,2]
[422975648,1779697838000,-2065.05,8.219e-05,2]
[422975656,1779697838000,-1210.42,8.219e-05,2]
[422975658,1779697838000,-500.0,8.219e-05,2]
[422975657,1779697838000,-500.0,8.219e-05,2]
[422975653,1779697838000,-1429.06,8.219e-05,2]
[422975659,1779697838000,-500.0,8.219e-05,2]
[422975654,1779697838000,-2485.17,8.219e-05,2]
[422975651,1779697838000,-500.0,8.219e-05,2]
[422975652,1779697838000,-500.0,8.219e-05,2]
[422975650,1779697838000,-500.0,8.219e-05,2]
[422975655,1779697838000,-1099.99,8.219e-05,2]
[422975697,1779697839000,-500.0,8.493e-05,2]
[422975701,1779697839000,-500.0,8.493e-05,2]
[422975699,1779697839000,-500.0,8.493e-05,2]
[422975702,1779697839000,-500.0,8.493e-05,2]
[422975695,1779697839000,-853.49,8.493e-05,2]
[422975691,1779697839000,-500.0,8.493e-05,2]
[422975694,1779697839000,-500.0,8.493e-05,2]
[422975696,1779697839000,-1731.17,8.493e-05,2]
[422975692,1779697839000,-500.0,8.493e-05,2]
[422975693,1779697839000,-2964.55,8.493e-05,2]
[422975711,1779697839000,-1939.88,8.493e-05,2]
[422975700,1779697839000,-500.0,8.493e-05,2]
[422975706,1779697839000,-1364.15,8.493e-05,2]
[422975704,1779697839000,-500.0,8.493e-05,2]
[422975703,1779697839000,-901.22,8.493e-05,2]
[422975705,1779697839000,-751.98,8.493e-05,2]
[422975690,1779697839000,-500.0,8.493e-05,2]
[422975707,1779697839000,-848.43,8.493e-05,2]
[422975708,1779697839000,-709.51398507,8.493e-05,2]
[422975709,1779697839000,-567.04601493,8.493e-05,2]
[422975714,1779697839000,-500.0,8.493e-05,2]
[422975718,1779697839000,-1210.42,8.493e-05,2]
[422975716,1779697839000,-2485.17,8.493e-05,2]
[422975712,1779697839000,-500.0,8.493e-05,2]
[422975710,1779697839000,-2065.05,8.493e-05,2]
[422975698,1779697839000,-4179.72,8.493e-05,2]
[422975688,1779697839000,-500.0,8.493e-05,2]
[422975685,1779697839000,-150.0,8.356e-05,2]
[422975684,1779697839000,-500.0,8.219e-05,2]
[422975660,1779697839000,-689.81,8.219e-05,2]
[422975661,1779697839000,-17098.84,8.219e-05,2]
[422975662,1779697839000,-500.0,8.219e-05,2]
[422975663,1779697839000,-500.0,8.219e-05,2]
[422975664,1779697839000,-1760.86,8.219e-05,2]
[422975665,1779697839000,-500.0,8.219e-05,2]
[422975666,1779697839000,-625.28,8.219e-05,2]
[422975676,1779697839000,-500.0,8.219e-05,2]
[422975667,1779697839000,-2458.36,8.219e-05,2]
[422975669,1779697839000,-5088.12,8.219e-05,2]
[422975668,1779697839000,-500.0,8.219e-05,2]
[422975670,1779697839000,-635.84,8.219e-05,2]
[422975687,1779697839000,-500.0,8.493e-05,2]
[422975671,1779697839000,-500.0,8.219e-05,2]
[422975675,1779697839000,-500.0,8.219e-05,2]
[422975672,1779697839000,-1376.44,8.219e-05,2]
[422975674,1779697839000,-856.54,8.219e-05,2]
[422975678,1779697839000,-500.0,8.219e-05,2]
[422975677,1779697839000,-500.0,8.219e-05,2]
[422975680,1779697839000,-1590.83,8.219e-05,2]
[422975681,1779697839000,-500.0,8.219e-05,2]
[422975679,1779697839000,-4115.35,8.219e-05,2]
[422975682,1779697839000,-5000.0,8.219e-05,2]
[422975683,1779697839000,-500.0,8.219e-05,2]
[422975686,1779697839000,-280.92528631,8.492e-05,2]
[422975689,1779697839000,-964.48,8.493e-05,2]
[422975673,1779697839000,-500.0,8.219e-05,2]
[422975715,1779697839000,-1429.06,8.493e-05,2]
[422975734,1779697839000,-635.84,8.493e-05,2]
[422975713,1779697839000,-500.0,8.493e-05,2]
[422975750,1779697839000,-964.48,8.767e-05,2]
[422975746,1779697839000,-500.0,8.493e-05,2]
[422975754,1779697839000,-2964.55,8.767e-05,2]
[422975749,1779697839000,-500.0,8.767e-05,2]
[422975752,1779697839000,-500.0,8.767e-05,2]
[422975753,1779697839000,-500.0,8.767e-05,2]
[422975756,1779697839000,-853.49,8.767e-05,2]
[422975757,1779697839000,-1731.17,8.767e-05,2]
[422975762,1779697839000,-500.0,8.767e-05,2]
[422975761,1779697839000,-500.0,8.767e-05,2]
[422975760,1779697839000,-500.0,8.767e-05,2]
[422975758,1779697839000,-500.0,8.767e-05,2]
[422975751,1779697839000,-500.0,8.767e-05,2]
[422975763,1779697839000,-500.0,8.767e-05,2]
[422975765,1779697839000,-500.0,8.767e-05,2]
[422975767,1779697839000,-1364.15,8.767e-05,2]
[422975766,1779697839000,-751.98,8.767e-05,2]
[422975769,1779697839000,-1276.56,8.767e-05,2]
[422975768,1779697839000,-848.43,8.767e-05,2]
[422975771,1779697839000,-1939.88,8.767e-05,2]
[422975770,1779697839000,-2065.05,8.767e-05,2]
[422975772,1779697839000,-500.0,8.767e-05,2]
[422975775,1779697839000,-1429.06,8.767e-05,2]
[422975773,1779697839000,-500.0,8.767e-05,2]
[422975774,1779697839000,-500.0,8.767e-05,2]
[422975717,1779697839000,-1099.99,8.493e-05,2]
[422975764,1779697839000,-901.22,8.767e-05,2]
[422975755,1779697839000,-500.0,8.767e-05,2]
[422975759,1779697839000,-4179.72,8.767e-05,2]
[422975748,1779697839000,-500.0,8.767e-05,2]
[422975747,1779697839000,-500.0,8.493e-05,2]
[422975719,1779697839000,-500.0,8.493e-05,2]
[422975720,1779697839000,-500.0,8.493e-05,2]
[422975721,1779697839000,-547.78,8.493e-05,2]
[422975723,1779697839000,-14133.49682101,8.493e-05,2]
[422975722,1779697839000,-689.81,8.493e-05,2]
[422975724,1779697839000,-377.73370233,8.493e-05,2]
[422975727,1779697839000,-500.0,8.493e-05,2]
[422975728,1779697839000,-1760.86,8.493e-05,2]
[422975729,1779697839000,-500.0,8.493e-05,2]
[422975726,1779697839000,-500.0,8.493e-05,2]
[422975730,1779697839000,-625.28,8.493e-05,2]
[422975731,1779697839000,-2458.36,8.493e-05,2]
[422975725,1779697839000,-2587.60947666,8.493e-05,2]
[422975743,1779697839000,-4115.35,8.493e-05,2]
[422975745,1779697839000,-500.0,8.493e-05,2]
[422975732,1779697839000,-500.0,8.493e-05,2]